bitfinex/quotes_SOLUSD_20250310
["timestamp","ask_amount","ask_price","bid_price","bid_amount"]
[1741601435251,26.41114886,128.84,128.83,0.063]
[1741601435631,64.37480328,128.84,128.83,0.063]
[1741601435847,64.37480328,128.84,128.83,0.0001]
[1741601436759,26.695472,128.84,128.83,0.0001]
[1741601436954,64.23264171,128.84,128.83,0.0001]
[1741601437346,64.37480328,128.84,128.83,0.0001]
[1741601439561,56.61330328,128.81,128.8,0.063]
[1741601440034,56.32898014,128.81,128.8,0.063]
[1741601440235,37.67933128,128.82,128.8,0.063]
[1741601440441,58.8,128.83,128.8,0.063]
[1741601440652,58.8,128.83,128.81,37.67933128]
[1741601442967,66.5622,128.83,128.8,0.063]
[1741601443260,66.5622,128.83,128.8,37.74233128]
[1741601443763,66.5622,128.83,128.8,0.063]
[1741601444065,7.7617,128.84,128.8,37.74233128]
[1741601444242,7.7617,128.84,128.8,0.063]
[1741601444445,81.1,128.82,128.8,0.063]
[1741601445160,81.1,128.82,128.81,23.56889736]
[1741601445742,81.1,128.82,128.8,23.63189736]
[1741601445947,81.1,128.82,128.8,0.063]
[1741601446154,88.8627,128.82,128.8,0.063]
[1741601446461,81.1,128.82,128.8,0.063]
[1741601446644,81.1,128.82,128.81,23.56889736]
[1741601447962,81.1,128.82,128.8,31.39569736]
[1741601448154,81.1,128.82,128.81,23.56889736]
[1741601448348,81.1,128.82,128.8,7.8268]
[1741601448555,81.1,128.82,128.8,31.39569736]
[1741601449368,81.1,128.81,128.8,0.063]
[1741601449549,58.8,128.83,128.8,0.063]
[1741601449752,58.8,128.83,128.8,23.63189736]
[1741601449963,66.5622,128.83,128.8,0.063]
[1741601451778,58.8,128.83,128.81,23.56889736]
[1741601452296,66.5622,128.83,128.8,0.063]
[1741601452662,90.13109736,128.83,128.8,0.063]
[1741601452895,109.53649736,128.83,128.8,0.063]
[1741601453063,65.5622,128.83,128.8,0.063]
[1741601453904,84.9676,128.83,128.8,0.063]
[1741601454077,108.53649736,128.83,128.8,0.063]
[1741601454397,42.21854622,128.82,128.8,0.063]
[1741601454606,99.11854622,128.82,128.8,0.063]
[1741601455297,75.54964886,128.82,128.8,0.063]
[1741601455977,7.7633,128.81,128.8,0.063]
[1741601456599,26.55511043,128.81,128.8,0.063]
[1741601456810,50.12400779,128.81,128.8,0.063]
[1741601457100,7.7633,128.81,128.8,0.063]
[1741601457398,31.47435893,128.81,128.8,0.063]
[1741601457767,50.26616936,128.81,128.8,0.063]
[1741601458185,50.12400779,128.81,128.8,0.063]
[1741601458378,26.41294886,128.81,128.8,0.063]
[1741601459895,50.26616936,128.81,128.8,0.063]
[1741601460400,50.12400779,128.81,128.8,0.063]
[1741601460572,50.26616936,128.81,128.8,0.063]
[1741601460895,26.55511043,128.81,128.8,0.063]
[1741601461114,26.41294886,128.81,128.8,0.063]
[1741601461507,43.00169736,128.85,128.8,0.063]
[1741601461813,18.64964886,128.83,128.8,0.063]
[1741601462186,43.11495893,128.84,128.8,0.063]
[1741601462187,18.64964886,128.81,128.8,0.063]
[1741601462407,76.54964886,128.81,128.8,0.063]
[1741601463132,57.9,128.81,128.8,0.063]
[1741601463293,57.9,128.81,128.8,23.63189736]
[1741601464284,65.6623,128.83,128.8,23.63189736]
[1741601464806,65.6623,128.83,128.8,0.063]
[1741601465020,18.79181043,128.82,128.8,0.063]
[1741601465183,42.36070779,128.82,128.8,0.063]
[1741601465688,42.21854622,128.82,128.8,0.063]
[1741601466402,18.64964886,128.82,128.8,0.063]
[1741601466595,26.41254886,128.82,128.8,0.063]
[1741601467015,26.44094886,128.85,128.81,23.56889736]
[1741601467218,26.44094886,128.85,128.8,0.063]
[1741601467219,0.03,128.85,128.84,23.56889736]
[1741601467821,0.03,128.85,128.83,25.21919736]
[1741601468330,0.03,128.85,128.83,39.34534791]
[1741601468539,0.03,128.85,128.84,37.69504791]
[1741601470214,0.03,128.85,128.84,37.83720948]
[1741601470411,81.1,128.92,128.86,6.2001]
[1741601470718,81.1,128.91,128.9,37.69504791]
[1741601470941,81.1,128.91,128.89,37.69504791]
[1741601472354,56.34469677,128.9,128.83,1.6503]
[1741601472632,18.64964886,128.88,128.83,39.34534791]
[1741601472839,18.64964886,128.86,128.83,1.6503]
[1741601473040,81.1,128.85,128.81,37.69504791]
[1741601473907,88.8614,128.85,128.81,37.69504791]
[1741601474113,81.1,128.85,128.84,37.69504791]
[1741601474621,81.1,128.89,128.84,37.69504791]
[1741601474819,95.73720948,128.91,128.86,37.69504791]
[1741601475024,81.1,128.89,128.87,1.5294]
[1741601475213,81.1,128.92,128.88,75.39009582]
[1741601475547,81.1,128.91,128.87,1.5294]
[1741601476214,7.7579,128.9,128.87,1.5294]
[1741601476523,7.7579,128.9,128.86,37.69504791]
[1741601477020,7.7579,128.9,128.87,37.69504791]
[1741601477224,7.7579,128.9,128.86,37.69504791]
[1741601477428,27.1527,128.9,128.85,37.69504791]
[1741601477752,195.34469677,128.89,128.84,37.69504791]
[1741601478343,18.64964886,128.87,128.83,1.5885]
[1741601478528,81.1,128.86,128.8,1.6508]
[1741601478836,81.1,128.85,128.82,37.69504791]
[1741601479211,81.1,128.85,128.8,37.75804791]
[1741601479212,18.64964886,128.84,128.8,37.75804791]
[1741601479419,118.79504791,128.83,128.8,0.063]
[1741601479734,81.1,128.82,128.8,0.063]
[1741601479939,81.1,128.82,128.8,37.75804791]
[1741601480240,139.0,128.87,128.81,37.69504791]
[1741601480422,139.0,128.87,128.8,7.8266]
[1741601480423,81.1,128.86,128.84,37.69504791]
[1741601480750,57.9,128.87,128.84,37.69504791]
[1741601480751,81.1,128.85,128.84,37.69504791]
[1741601481043,81.1,128.85,128.83,37.69504791]
[1741601481340,81.1,128.85,128.8,0.063]
[1741601481341,81.1,128.85,128.82,37.69504791]
[1741601481538,81.1,128.85,128.8,0.063]
[1741601481845,81.1,128.85,128.82,37.69504791]
[1741601482135,99.74964886,128.85,128.84,0.063]
[1741601482315,76.54964886,128.85,128.84,0.063]
[1741601482521,65.6609,128.85,128.84,0.063]
[1741601482732,57.9,128.85,128.84,0.063]
[1741601482925,84.31054886,128.85,128.84,0.063]
[1741601483140,84.45271043,128.85,128.84,0.063]
[1741601483327,122.00559677,128.85,128.84,0.063]
[1741601483930,57.9,128.85,128.84,0.063]
[1741601485845,26.40964886,128.87,128.84,0.063]
[1741601486339,56.48685834,128.86,128.84,0.063]
[1741601486547,64.24775834,128.85,128.84,0.063]
[1741601486843,122.14775834,128.85,128.84,0.063]
[1741601487412,18.933972,128.84,128.8,0.063]
[1741601487628,56.34469677,128.82,128.8,0.063]
[1741601487939,195.62901991,128.81,128.8,0.063]
[1741601488135,56.62901991,128.81,128.8,0.063]
[1741601488445,20.0,128.81,128.8,0.063]
[1741601488614,81.1,128.82,128.8,37.75804791]
[1741601489120,81.1,128.82,128.8,0.063]
[1741601489567,81.1,128.82,128.8,37.75804791]
[1741601490458,81.1,128.82,128.8,0.063]
[1741601490832,88.863,128.82,128.8,0.063]
[1741601491659,157.79181043,128.81,128.8,0.063]
[1741601491871,195.62901991,128.81,128.8,0.063]
[1741601492171,164.04541043,128.81,128.8,0.063]
[1741601492478,201.88261991,128.81,128.8,0.0001]
[1741601492632,99.74954886,128.79,128.78,0.063]
[1741601492831,107.51404886,128.79,128.78,0.063]
[1741601494343,107.65621043,128.79,128.78,0.063]
[1741601495265,145.35125834,128.79,128.78,0.063]
[1741601495682,107.65621043,128.79,128.78,0.063]
[1741601496537,81.0999,128.79,128.78,0.063]
[1741601496751,88.8644,128.79,128.78,0.063]
[1741601496968,107.51404886,128.79,128.78,0.063]
[1741601497353,107.65621043,128.79,128.78,0.063]
[1741601498382,145.35125834,128.79,128.78,0.063]
[1741601499879,64.39351991,128.79,128.78,0.063]
[1741601500258,64.25135834,128.79,128.78,0.063]
[1741601500474,26.55631043,128.79,128.78,0.063]
[1741601501487,64.25135834,128.79,128.78,0.063]
[1741601501688,26.41414886,128.79,128.78,0.063]
[1741601501854,57.9,128.81,128.78,37.75804791]
[1741601502062,57.9,128.81,128.79,37.69504791]
[1741601502378,57.9,128.81,128.8,37.69504791]
[1741601502983,95.59504791,128.86,128.8,37.69504791]
[1741601503176,57.9,128.86,128.83,37.69504791]
[1741601503374,7.77185117,128.9,128.85,37.69504791]
[1741601503375,57.93,128.89,128.85,37.69504791]
[1741601503598,57.93,128.89,128.86,37.69504791]
[1741601503777,65.6887,128.89,128.85,37.69504791]
[1741601504389,0.03,128.89,128.87,37.69504791]
[1741601504562,0.03,128.89,128.86,37.69504791]
[1741601505600,0.03,128.89,128.88,37.69504791]
[1741601506599,0.03,128.89,128.88,83.14919582]
[1741601507065,0.03,128.89,128.88,45.45414791]
[1741601507267,0.03,128.89,128.88,83.14919582]
[1741601507492,0.03,128.89,128.88,75.39009582]
[1741601508068,0.03,128.89,128.88,37.69504791]
[1741601509878,0.03,128.89,128.82,39.22974791]
[1741601510095,81.1,128.88,128.84,37.69504791]
[1741601510588,99.74964886,128.87,128.84,37.69504791]
[1741601510888,99.74964886,128.87,128.83,37.69504791]
[1741601511182,18.64964886,128.85,128.82,37.69504791]
[1741601511388,81.1,128.84,128.82,37.69504791]
[1741601511777,81.1,128.84,128.83,37.69504791]
[1741601512877,57.9,128.86,128.83,37.69504791]
[1741601513085,81.1,128.87,128.85,37.69504791]
[1741601513279,7.7596,128.88,128.85,37.69504791]
[1741601514092,57.93,128.89,128.86,37.69504791]
[1741601514295,0.03,128.89,128.87,37.69504791]
[1741601514487,0.03,128.89,128.88,37.69504791]
[1741601514796,0.03,128.89,128.86,37.69504791]
[1741601515196,0.03,128.89,128.87,37.69504791]
[1741601515592,18.67964886,128.89,128.86,37.69504791]
[1741601515795,0.03,128.89,128.86,37.69504791]
[1741601515983,0.03,128.89,128.87,37.69504791]
[1741601516690,0.03,128.89,128.88,37.69504791]
[1741601517075,0.03,128.89,128.86,37.69504791]
[1741601517994,18.67964886,128.89,128.86,37.69504791]
[1741601518399,88.8886,128.89,128.87,37.69504791]
[1741601518776,88.8885,128.89,128.87,37.69504791]
[1741601519011,81.13,128.89,128.88,37.69504791]
[1741601519297,0.03,128.89,128.88,75.39009582]
[1741601519787,0.03,128.89,128.88,75.53225739]
[1741601519973,0.03,128.89,128.88,75.39009582]
[1741601520397,0.03,128.89,128.88,37.69504791]
[1741601520781,0.03,128.89,128.88,45.45414791]
[1741601521300,0.03,128.89,128.87,1.5496]
[1741601521602,0.03,128.89,128.88,37.69504791]
[1741601521792,0.03,128.89,128.88,75.39009582]
[1741601522104,0.03,128.89,128.88,37.69504791]
[1741601522284,0.03,128.89,128.88,75.39009582]
[1741601522702,0.03,128.89,128.88,83.14919582]
[1741601523399,0.03,128.89,128.88,83.43351896]
[1741601523575,81.1,128.95,128.94,37.69504791]
[1741601523782,0.03,128.96,128.94,37.69504791]
[1741601524107,0.03,128.96,128.95,37.69504791]
[1741601524995,0.03,128.96,128.94,37.69504791]
[1741601525300,0.03,128.96,128.93,37.69504791]
[1741601526790,7.7843,128.96,128.93,37.69504791]
[1741601528297,157.64964886,128.95,128.91,37.69504791]
[1741601528498,56.34469677,128.93,128.84,1.6592]
[1741601528693,118.79504791,128.92,128.87,37.69504791]
[1741601528893,7.7579,128.9,128.87,37.69504791]
[1741601529098,81.1,128.91,128.89,37.69504791]
[1741601529280,81.1,128.91,128.9,37.69504791]
[1741601529482,7.7572,128.92,128.9,37.69504791]
[1741601529695,18.64964886,128.91,128.88,37.69504791]
[1741601529904,18.64964886,128.91,128.87,37.69504791]
[1741601530078,99.74964886,128.91,128.88,37.69504791]
[1741601530293,81.1,128.91,128.89,37.69504791]
[1741601530706,81.1,128.91,128.9,37.69504791]
[1741601531303,88.8573,128.91,128.89,37.69504791]
[1741601532507,88.8573,128.91,128.88,37.69504791]
[1741601532696,88.8573,128.91,128.89,37.69504791]
[1741601533205,88.8573,128.91,128.88,37.69504791]
[1741601533403,88.8573,128.91,128.85,7.7607]
[1741601533583,88.8573,128.91,128.87,37.69504791]
[1741601535606,99.74964886,128.9,128.87,37.69504791]
[1741601535812,81.1,128.89,128.84,37.69504791]
[1741601535995,118.79504791,128.89,128.84,37.69504791]
[1741601536194,137.44469677,128.88,128.83,37.69504791]
[1741601536386,81.1,128.87,128.82,37.69504791]
[1741601536590,118.79504791,128.87,128.82,37.69504791]
[1741601536990,7.7609,128.85,128.81,37.69504791]
[1741601537207,118.79504791,128.84,128.8,0.063]
[1741601537721,137.44469677,128.83,128.8,0.063]
[1741601538310,81.1,128.82,128.8,37.75804791]
[1741601539191,81.1,128.82,128.81,37.69504791]
[1741601539395,81.1,128.86,128.81,37.69504791]
[1741601539614,81.1,128.86,128.85,37.69504791]
[1741601539914,81.1,128.86,128.84,37.69504791]
[1741601540395,81.1,128.86,128.85,37.69504791]
[1741601540912,81.1,128.86,128.84,37.69504791]
[1741601541094,81.1,128.86,128.8,1.6549]
[1741601541292,88.8605,128.86,128.82,37.69504791]
[1741601541691,88.8605,128.86,128.81,37.69504791]
[1741601541692,81.1,128.85,128.81,37.69504791]
[1741601542107,0.14216157,128.83,128.8,0.063]
[1741601542293,157.64964886,128.82,128.8,0.063]
[1741601542604,37.83720948,128.81,128.8,0.063]
[1741601542809,0.14216157,128.81,128.8,0.063]
[1741601543192,18.64964886,128.82,128.8,0.063]
[1741601543587,26.41244886,128.82,128.8,0.063]
[1741601543800,64.10749677,128.82,128.8,0.063]
[1741601544002,26.41244886,128.82,128.8,0.063]
[1741601544808,81.1,128.83,128.8,0.063]
[1741601544989,81.1,128.83,128.81,37.69504791]
[1741601545390,81.1,128.83,128.82,37.69504791]
[1741601545619,81.1,128.83,128.81,37.69504791]
[1741601546496,137.44469677,128.82,128.8,0.063]
[1741601546711,99.74964886,128.82,128.8,0.063]
[1741601547217,137.44469677,128.82,128.8,0.063]
[1741601547533,64.39231991,128.81,128.8,0.063]
[1741601547692,64.25015834,128.81,128.8,0.063]
[1741601547893,26.697272,128.81,128.8,0.063]
[1741601548094,64.39231991,128.81,128.8,0.063]
[1741601548499,70.64791991,128.81,128.8,0.063]
[1741601554217,64.39231991,128.81,128.8,0.063]
[1741601554822,64.39231991,128.81,128.78,0.063]
[1741601554823,0.28432314,128.79,128.78,0.063]
[1741601555121,18.64964886,128.76,128.71,0.063]
[1741601555412,81.1,128.75,128.71,45.52734791]
[1741601555619,81.1,128.75,128.73,37.69504791]
[1741601555822,81.1,128.75,128.71,7.8323]
[1741601555823,81.1,128.75,128.74,37.69504791]
[1741601555999,81.1,128.78,128.74,37.69504791]
[1741601556197,88.8655,128.78,128.74,37.69504791]
[1741601556414,126.56054791,128.78,128.72,37.69504791]
[1741601557116,81.1,128.77,128.72,37.69504791]
[1741601557633,81.1,128.77,128.74,37.69504791]
[1741601557797,88.8655,128.78,128.74,37.69504791]
[1741601558611,88.8655,128.78,128.75,37.69504791]
[1741601558612,81.1,128.78,128.75,37.69504791]
[1741601560507,88.8652,128.78,128.75,37.69504791]
[1741601560916,88.8652,128.78,128.74,37.69504791]
[1741601561622,88.8652,128.78,128.75,37.69504791]
[1741601561802,81.1,128.78,128.75,37.69504791]
[1741601562505,88.8652,128.78,128.75,37.69504791]
[1741601563628,56.34469677,128.77,128.72,37.69504791]
[1741601563817,37.69504791,128.76,128.71,37.75804791]
[1741601564026,81.1,128.75,128.71,37.75804791]
[1741601564216,118.79504791,128.75,128.71,0.063]
[1741601564607,56.34469677,128.73,128.71,0.063]
[1741601564828,99.74964886,128.72,128.71,0.063]
[1741601565027,18.933972,128.66,128.55,7.8419]
[1741601565329,56.48685834,128.63,128.55,37.75804791]
[1741601565926,0.14216157,128.61,128.55,0.063]
[1741601566133,37.69504791,128.59,128.55,0.063]
[1741601566326,56.34469677,128.56,128.55,0.063]
[1741601566633,64.12309677,128.56,128.55,0.063]
[1741601566807,26.42804886,128.56,128.55,0.063]
[1741601567217,81.1,128.57,128.55,37.75804791]
[1741601567622,81.1,128.57,128.55,0.063]
[1741601568138,88.8778,128.57,128.55,0.063]
[1741601568629,81.1,128.57,128.55,0.063]
[1741601570832,99.74964886,128.56,128.55,0.063]
[1741601571126,114.28685834,128.56,128.55,0.063]
[1741601571329,76.59181043,128.56,128.55,0.063]
[1741601571906,57.8,128.56,128.55,0.063]
[1741601573810,57.8,128.61,128.55,37.75804791]
[1741601574013,57.8,128.64,128.58,37.69504791]
[1741601574237,65.5742,128.63,128.59,37.69504791]
[1741601574405,7.7737,128.64,128.61,37.69504791]
[1741601574605,57.8,128.65,128.61,37.69504791]
[1741601574847,103.26824791,128.65,128.6,37.69504791]
[1741601575322,81.1,128.62,128.59,37.69504791]
[1741601575530,81.1,128.62,128.6,37.69504791]
[1741601575826,81.1,128.62,128.61,37.69504791]
[1741601576613,81.1,128.64,128.61,37.69504791]
[1741601576812,0.063,128.62,128.59,0.14216157]
[1741601578210,0.063,128.62,128.61,37.83720948]
[1741601578721,81.1,128.68,128.63,7.7742]
[1741601578925,54.03057019,128.68,128.64,37.69504791]
[1741601579230,61.80177019,128.68,128.63,37.69504791]
[1741601579618,54.03057019,128.68,128.63,37.69504791]
[1741601579937,54.03057019,128.68,128.65,37.69504791]
[1741601580432,61.80177019,128.68,128.62,9.3982]
[1741601580744,99.4968181,128.68,128.63,37.69504791]
[1741601580917,54.03057019,128.68,128.64,37.69504791]
[1741601581321,91.7256181,128.68,128.63,37.69504791]
[1741601582149,54.03057019,128.68,128.64,37.69504791]
[1741601582342,61.80177019,128.68,128.64,37.69504791]
[1741601582635,54.03057019,128.68,128.66,37.69504791]
[1741601582829,54.03057019,128.7,128.66,37.69504791]
[1741601583030,61.80067019,128.7,128.66,37.69504791]
[1741601584035,61.80067019,128.7,128.64,37.69504791]
[1741601584036,37.69504791,128.69,128.64,37.69504791]
[1741601584331,37.69504791,128.68,128.63,37.69504791]
[1741601584722,37.69504791,128.67,128.62,1.6236]
[1741601584918,37.69504791,128.66,128.62,1.6236]
[1741601585314,37.69504791,128.66,128.61,45.47044791]
[1741601585515,56.34469677,128.68,128.61,7.7754]
[1741601585716,37.69504791,128.65,128.59,8.06092314]
[1741601585915,37.69504791,128.65,128.6,37.69504791]
[1741601586134,37.69504791,128.63,128.59,7.7766]
[1741601586435,37.69504791,128.63,128.58,45.47224791]
[1741601586733,37.69504791,128.63,128.58,37.69504791]
[1741601587042,99.4995181,128.64,128.59,37.69504791]
[1741601587244,99.4995181,128.64,128.56,37.69504791]
[1741601587245,37.69504791,128.61,128.56,37.69504791]
[1741601587441,37.69504791,128.59,128.55,0.063]
[1741601587629,18.64964886,128.62,128.55,0.063]
[1741601587841,37.69504791,128.6,128.55,0.063]
[1741601588142,56.62901991,128.56,128.55,0.063]
[1741601588632,64.40741991,128.56,128.55,0.063]
[1741601589344,64.40741991,128.56,128.55,0.0001]
[1741601591445,0.14216157,128.54,128.53,0.063]
[1741601591752,56.48685834,128.54,128.53,0.063]
[1741601592051,128.02406782,128.54,128.53,0.0001]
[1741601592246,128.02406782,128.54,128.52,0.063]
[1741601592247,18.79181043,128.53,128.52,0.063]
[1741601592431,56.62901991,128.53,128.52,0.063]
[1741601592828,64.40921991,128.53,128.52,0.063]
[1741601594943,37.69504791,128.48,128.43,37.69504791]
[1741601595734,37.69504791,128.48,128.43,45.48094791]
[1741601595954,37.69504791,128.47,128.42,7.8167]
[1741601596127,45.47874791,128.48,128.43,37.69504791]
[1741601596327,81.1,128.47,128.43,37.69504791]
[1741601596527,81.1,128.47,128.44,37.69504791]
[1741601596737,81.1,128.47,128.45,37.69504791]
[1741601597249,0.67576157,128.56,128.45,37.69504791]
[1741601597250,81.1,128.55,128.47,0.28432314]
[1741601597450,81.1,128.55,128.52,37.69504791]
[1741601597747,81.1,128.55,128.53,37.69504791]
[1741601597937,81.1,128.55,128.49,27.38156157]
[1741601598140,81.1,128.55,128.52,37.69504791]
[1741601598724,81.1,128.55,128.51,37.69504791]
[1741601599039,37.69504791,128.54,128.49,45.47774791]
[1741601599349,81.1,128.54,128.49,45.47774791]
[1741601599644,118.79504791,128.54,128.49,37.69504791]
[1741601599845,56.34469677,128.53,128.48,37.69504791]
[1741601600050,99.74964886,128.53,128.52,0.03]
[1741601600351,81.1,128.53,128.52,0.03]
[1741601600550,99.74964886,128.53,128.52,0.03]
[1741601600851,107.52984886,128.53,128.52,0.03]
[1741601601045,99.74964886,128.53,128.52,0.03]
[1741601601636,81.1,128.53,128.52,0.03]
[1741601602158,114.8,128.56,128.52,37.72504791]
[1741601602341,81.1,128.56,128.53,37.69504791]
[1741601603554,81.1,128.56,128.54,37.69504791]
[1741601604144,81.1,128.56,128.54,45.47444791]
[1741601604444,81.1,128.56,128.52,45.50564791]
[1741601605457,81.1,128.56,128.52,37.72504791]
[1741601605642,118.79504791,128.55,128.52,0.03]
[1741601606356,7.7796,128.54,128.52,0.03]
[1741601606761,126.57464791,128.54,128.52,0.03]
[1741601607157,81.1,128.54,128.52,0.03]
[1741601607355,81.1,128.54,128.52,37.72504791]
[1741601607551,81.1,128.54,128.52,0.03]
[1741601607953,81.1,128.54,128.53,37.69504791]
[1741601608159,7.7769,128.59,128.53,37.69504791]
[1741601608345,81.1,128.59,128.57,37.69504791]
[1741601609145,88.8767,128.59,128.56,37.69504791]
[1741601609342,88.8767,128.59,128.55,37.69504791]
[1741601609537,56.34469677,128.58,128.52,0.03]
[1741601609743,118.79504791,128.57,128.52,37.72504791]
[1741601610361,118.79504791,128.56,128.52,0.03]
[1741601610544,7.779,128.55,128.52,0.03]
[1741601610744,7.779,128.55,128.52,37.72504791]
[1741601610945,81.1,128.56,128.53,37.69504791]
[1741601611169,88.8786,128.56,128.52,37.72504791]
[1741601612159,88.8786,128.56,128.53,37.69504791]
[1741601612371,88.8786,128.56,128.52,37.72504791]
[1741601612553,81.1,128.55,128.52,37.72504791]
[1741601612965,81.1,128.55,128.52,0.03]
[1741601613154,81.1,128.55,128.53,37.69504791]
[1741601614357,7.7796,128.54,128.52,37.72504791]
[1741601614864,81.1,128.55,128.53,37.69504791]
[1741601615247,81.1,128.55,128.52,37.72504791]
[1741601615454,88.8792,128.55,128.52,37.72504791]
[1741601615649,81.1,128.55,128.52,37.72504791]
[1741601615846,81.1,128.54,128.52,0.03]
[1741601616062,81.1,128.53,128.52,0.03]
[1741601616367,56.34469677,128.53,128.52,0.03]
[1741601616671,26.42984886,128.53,128.52,0.03]
[1741601617050,64.12489677,128.53,128.52,0.03]
[1741601617251,64.26705834,128.53,128.52,0.03]
[1741601617661,64.40921991,128.53,128.52,0.0001]
[1741601617865,102.10426782,128.53,128.52,0.0001]
[1741601619164,64.40921991,128.53,128.52,0.0001]
[1741601619473,26.714172,128.53,128.52,0.0001]
[1741601619678,64.40921991,128.53,128.52,0.0001]
[1741601620476,18.64964886,128.5,128.46,37.69504791]
[1741601620671,81.0999,128.49,128.46,37.69504791]
[1741601621271,81.0999,128.49,128.47,37.69504791]
[1741601621859,81.0999,128.49,128.46,37.69504791]
[1741601622174,81.0999,128.49,128.47,37.69504791]
[1741601622561,81.0999,128.49,128.46,37.69504791]
[1741601622778,88.8826,128.49,128.46,37.69504791]
[1741601623079,81.0999,128.49,128.46,37.69504791]
[1741601623474,88.8826,128.49,128.45,37.69504791]
[1741601623876,88.8826,128.49,128.46,37.69504791]
[1741601624178,81.0999,128.49,128.46,0.03]
[1741601624354,25.5965,128.55,128.48,37.69504791]
[1741601624355,88.8798,128.54,128.48,37.69504791]
[1741601624559,81.0999,128.53,128.5,37.69504791]
[1741601625366,88.8805,128.53,128.49,37.69504791]
[1741601625766,126.57554791,128.53,128.48,37.69504791]
[1741601626465,37.69504791,128.51,128.46,37.72504791]
[1741601626693,81.0999,128.5,128.46,37.72504791]
[1741601627785,7.7827,128.49,128.46,0.03]
[1741601628098,88.8826,128.49,128.46,0.03]
[1741601629585,81.0999,128.49,128.47,37.69504791]
[1741601630795,81.0999,128.49,128.46,37.72504791]
[1741601630980,88.8829,128.49,128.46,0.03]
[1741601631364,81.0999,128.49,128.46,37.72504791]
[1741601631666,81.0999,128.49,128.47,45.47834791]
[1741601631869,81.0999,128.49,128.48,37.69504791]
[1741601632983,81.0999,128.49,128.47,37.69504791]
[1741601633596,81.0999,128.49,128.48,37.69504791]
[1741601633799,81.0999,128.49,128.47,37.69504791]
[1741601634182,7.7824,128.5,128.47,37.69504791]
[1741601634584,81.0999,128.49,128.46,37.72504791]
[1741601634887,81.0999,128.49,128.46,0.03]
[1741601635095,81.0999,128.48,128.46,0.03]
[1741601636191,81.0999,128.48,128.47,0.03]
[1741601636389,88.8832,128.48,128.47,0.03]
[1741601636778,81.0999,128.48,128.47,0.03]
[1741601638099,88.8832,128.48,128.47,0.03]
[1741601638482,81.0999,128.48,128.47,0.03]
[1741601642481,64.27015834,128.48,128.47,0.03]
[1741601642686,52.49181043,128.47,128.46,0.03]
[1741601642906,18.64964886,128.43,128.42,0.03]
[1741601643192,57.69504791,128.44,128.42,0.03]
[1741601643389,18.79181043,128.43,128.42,0.03]
[1741601643594,18.64964886,128.43,128.42,0.03]
[1741601643799,26.57811043,128.43,128.42,0.03]
[1741601644004,64.27315834,128.43,128.42,0.03]
[1741601644391,64.41531991,128.43,128.42,0.03]
[1741601646791,70.46191991,128.43,128.42,0.03]
[1741601647104,70.46191991,128.43,128.4,0.063]
[1741601647105,38.79181043,128.41,128.4,0.063]
[1741601647316,76.48685834,128.41,128.4,0.063]
[1741601648188,84.27435834,128.41,128.4,0.063]
[1741601648711,84.41651991,128.41,128.4,0.063]
[1741601650797,84.41651991,128.41,128.35,0.03]
[1741601650798,18.79181043,128.36,128.35,0.03]
[1741601651006,56.62901991,128.36,128.35,0.03]
[1741601651810,62.67751991,128.36,128.35,0.03]
[1741601652014,20.0,128.32,128.28,2.7747609]
[1741601652201,56.34469677,128.31,128.28,2.7747609]
[1741601652526,26.44334886,128.31,128.28,2.7747609]
[1741601653297,18.79181043,128.33,128.28,48.26510881]
[1741601653595,18.79181043,128.33,128.28,40.46980881]
[1741601653815,26.58441043,128.33,128.28,2.7747609]
[1741601653994,37.69504791,128.32,128.28,2.7747609]